fUST/lending_fUST_20250525
["ID","MTS","AMOUNT","RATE_DAILY","PERIOD"]
[362255483,1748121054468,-530.0,0.00022739,2]
[362255484,1748121054478,-530.0,0.00022739,2]
[362255485,1748121054488,-430.0,0.00022739,2]
[362255486,1748121054498,-430.0,0.00022739,2]
[362255487,1748121054507,-430.0,0.00022739,2]
[362255488,1748121054517,-280.0,0.00022739,2]
[362255489,1748121054527,-262.83,0.00022739,2]
[362255490,1748121054536,-493.1,0.00022739,2]
[362255491,1748121054546,-430.0,0.00022739,2]
[362255492,1748121054555,-430.0,0.00022739,2]
[362255493,1748121054565,-430.0,0.00022739,2]
[362255494,1748121054576,-430.0,0.00022739,2]
[362255495,1748121054586,-430.0,0.00022739,2]
[362255496,1748121054595,-280.688139,0.00022739,7]
[362255497,1748121054605,-280.688139,0.00022739,7]
[362255498,1748121054615,-430.0,0.00022739,2]
[362255499,1748121054625,-280.688139,0.00022739,7]
[362255500,1748121054635,-280.688139,0.00022739,7]
[362255501,1748121054644,-547.68599041,0.00022739,2]
[362255502,1748121054654,-430.0,0.00022739,2]
[362255503,1748121054663,-151.0,0.00022739,7]
[362255504,1748121054674,-151.0,0.00022739,7]
[362255505,1748121054684,-430.0,0.00022739,2]
[362255506,1748121054693,-430.0,0.00022739,2]
[362255507,1748121054702,-430.0,0.00022739,2]
[362255508,1748121054711,-410.0,0.00022739,2]
[362255509,1748121054721,-430.0,0.00022739,2]
[362255510,1748121054731,-430.0,0.00022739,2]
[362255511,1748121054740,-430.0,0.00022739,2]
[362255512,1748121054749,-550.0,0.00022739,2]
[362255513,1748121054758,-322.1032523,0.00022739,2]
[362255514,1748121054768,-510.0,0.00022739,2]
[362255515,1748121054777,-430.0,0.00022739,2]
[362255516,1748121054786,-510.0,0.00022739,2]
[362255517,1748121054795,-430.0,0.00022739,2]
[362255518,1748121054804,-430.0,0.00022739,2]
[362255519,1748121054813,-510.0,0.00022739,2]
[362255520,1748121054824,-430.0,0.00022739,2]
[362255521,1748121054833,-430.0,0.00022739,2]
[362255522,1748121054843,-434.20163493,0.00022739,2]
[362255523,1748121054852,-430.0,0.00022739,2]
[362255524,1748121054862,-430.0,0.00022739,2]
[362255525,1748121054872,-430.0,0.00022739,2]
[362255526,1748121054881,-396.26187952,0.00022739,2]
[362255527,1748121054891,-430.0,0.00022739,2]
[362255528,1748121054901,-430.0,0.00022739,2]
[362255529,1748121054911,-430.0,0.00022739,2]
[362255530,1748121054920,-430.0,0.00022739,2]
[362255531,1748121054929,-370.0,0.00022739,2]
[362255532,1748121054938,-430.0,0.00022739,2]
[362255533,1748121054948,-557.26,0.00022739,2]
[362255534,1748121054958,-430.0,0.00022739,2]
[362255535,1748121054967,-430.0,0.00022739,2]
[362255536,1748121054976,-430.0,0.00022739,2]
[362255537,1748121054986,-430.0,0.00022739,2]
[362255538,1748121054996,-430.0,0.00022739,2]
[362255539,1748121055006,-430.0,0.00022739,2]
[362255540,1748121055016,-430.0,0.00022739,2]
[362255541,1748121055027,-430.0,0.00022739,2]
[362255542,1748121055037,-430.0,0.00022739,2]
[362255543,1748121055047,-430.0,0.00022739,2]
[362255544,1748121055056,-407.194135,0.00022739,2]
[362255545,1748121055066,-430.0,0.00022739,2]
[362255546,1748121055076,-430.0,0.00022739,2]
[362255547,1748121055089,-530.0,0.00022739,2]
[362255548,1748121055099,-430.0,0.00022739,2]
[362255549,1748121055109,-430.0,0.00022739,2]
[362255550,1748121055186,-430.0,0.00022739,2]
[362255551,1748121055196,-430.0,0.00022739,2]
[362255552,1748121055205,-430.0,0.00022739,2]
[362255553,1748121055214,-430.0,0.00022739,2]
[362255554,1748121055234,-430.0,0.00022739,2]
[362255555,1748121055246,-430.0,0.00022739,2]
[362255556,1748121055256,-430.0,0.00022739,2]
[362255557,1748121055266,-430.0,0.00022739,2]
[362255558,1748121055276,-248.7747718,0.00022739,2]
[362255559,1748121055286,-430.0,0.00022739,2]
[362255560,1748121055297,-430.0,0.00022739,2]
[362255561,1748121055307,-332.18273221,0.00022739,2]
[362255562,1748121055317,-430.0,0.00022739,2]
[362255563,1748121055327,-430.0,0.00022739,2]
[362255564,1748121055337,-430.0,0.00022739,2]
[362255565,1748121055348,-190.00000001,0.00022739,2]
[362255566,1748121055358,-430.0,0.00022739,2]
[362255567,1748121055368,-513.97,0.00022739,2]
[362255568,1748121055379,-430.0,0.00022739,2]
[362255569,1748121055389,-430.0,0.00022739,2]
[362255570,1748121055399,-430.0,0.00022739,2]
[362255571,1748121055410,-430.0,0.00022739,2]
[362255572,1748121055420,-777.32,0.00022739,2]
[362255573,1748121055430,-430.0,0.00022739,2]
[362255574,1748121055440,-430.0,0.00022739,2]
[362255575,1748121055451,-430.0,0.00022739,2]
[362255576,1748121055461,-553.11697193,0.00022739,2]
[362255577,1748121055472,-2531.05,0.00022739,2]
[362255578,1748121055482,-430.0,0.00022739,2]
[362255579,1748121055492,-434.48,0.00022739,2]
[362255580,1748121055502,-1086.65,0.00022739,2]
[362255581,1748121055512,-430.0,0.00022739,2]
[362255582,1748121055522,-430.0,0.00022739,2]
[362255583,1748121055533,-430.0,0.00022739,2]
[362255584,1748121055543,-476.44,0.00022739,2]
[362255585,1748121055553,-368.92087482,0.00022739,2]
[362255586,1748121055563,-430.0,0.00022739,2]
[362255587,1748121055573,-430.0,0.00022739,2]
[362255588,1748121055583,-430.0,0.00022739,2]
[362255589,1748121055593,-430.0,0.00022739,2]
[362255590,1748121055603,-430.0,0.00022739,2]
[362255591,1748121055614,-430.0,0.00022739,2]
[362255592,1748121055623,-430.0,0.00022739,2]
[362255593,1748121055634,-470.0,0.00022739,2]
[362255594,1748121055646,-430.0,0.00022739,2]
[362255595,1748121055656,-430.0,0.00022739,2]
[362255596,1748121055668,-1117.42,0.00022739,2]
[362255597,1748121055678,-464.83,0.00022739,2]
[362255598,1748121055703,-376.46426407,0.00022739,2]
[362255599,1748121055725,-430.0,0.00022739,2]
[362255600,1748121055746,-430.0,0.00022739,2]
[362255601,1748121055770,-430.0,0.00022739,2]
[362255602,1748121055793,-430.0,0.00022739,2]
[362255603,1748121055813,-430.0,0.00022739,2]
[362255604,1748121055835,-430.0,0.00022739,2]
[362255605,1748121055850,-232.7082935,0.00022739,2]
[362255606,1748121055869,-430.0,0.00022739,2]
[362255607,1748121055889,-1834.6,0.00022739,2]
[362255608,1748121055913,-430.0,0.00022739,2]
[362255609,1748121055926,-430.0,0.00022739,2]
[362255610,1748121055947,-430.0,0.00022739,2]
[362255611,1748121055961,-492.78,0.00022739,2]
[362255612,1748121055980,-430.0,0.00022739,2]
[362255613,1748121055993,-837.43,0.00022739,2]
[362255614,1748121056012,-430.0,0.00022739,2]
[362255615,1748121056027,-500.29,0.00022739,2]
[362255616,1748121056045,-430.0,0.00022739,2]
[362255617,1748121056061,-649.52,0.00022739,2]
[362255618,1748121056078,-430.0,0.00022739,2]
[362255619,1748121056094,-316.59177629,0.00022739,2]
[362255620,1748121056110,-430.0,0.00022739,2]
[362255621,1748121056126,-550.0,0.00022739,2]
[362255622,1748121056141,-430.0,0.00022739,2]
[362255623,1748121056157,-430.0,0.00022739,2]
[362255624,1748121056174,-430.0,0.00022739,2]
[362255625,1748121056189,-430.0,0.00022739,2]
[362255626,1748121056205,-430.0,0.00022739,2]
[362255627,1748121056221,-430.0,0.00022739,2]
[362255628,1748121056237,-491.32,0.00022739,2]
[362255629,1748121056248,-430.0,0.00022739,2]
[362255630,1748121056258,-430.0,0.00022739,2]
[362255631,1748121056268,-936.26,0.00022739,2]
[362255632,1748121056278,-430.0,0.00022739,2]
[362255633,1748121056288,-430.0,0.00022739,2]
[362255634,1748121056298,-545.37854421,0.00022739,2]
[362255635,1748121056308,-430.0,0.00022739,2]
[362255636,1748121056317,-2085.22,0.00022739,2]
[362255637,1748121056327,-430.0,0.00022739,2]
[362255638,1748121056337,-430.0,0.00022739,2]
[362255639,1748121056347,-430.0,0.00022739,2]
[362255640,1748121056356,-515.38,0.00022739,2]
[362255641,1748121056366,-296.87,0.00022739,2]
[362255642,1748121056376,-430.0,0.00022739,2]
[362255643,1748121056387,-824.47,0.00022739,2]
[362255644,1748121056396,-430.0,0.00022739,2]
[362255645,1748121056406,-430.0,0.00022739,2]
[362255646,1748121056603,-430.0,0.00022739,2]
[362255647,1748121056617,-438.64,0.00022739,2]
[362255648,1748121056627,-430.0,0.00022739,2]
[362255649,1748121056637,-430.0,0.00022739,2]
[362255650,1748121056646,-430.0,0.00022739,2]
[362255651,1748121056655,-2791.15,0.00022739,2]
[362255652,1748121056665,-430.0,0.00022739,2]
[362255653,1748121056674,-430.0,0.00022739,2]
[362255654,1748121056684,-430.0,0.00022739,2]
[362255655,1748121056694,-296.68069367,0.00022739,2]
[362255656,1748121056703,-999.25,0.00022739,2]
[362255657,1748121056712,-430.0,0.00022739,2]
[362255658,1748121056722,-430.0,0.00022739,2]
[362255659,1748121056731,-1101.64,0.00022739,2]
[362255660,1748121056741,-430.0,0.00022739,2]
[362255661,1748121056751,-430.0,0.00022739,2]
[362255662,1748121056760,-5231.77,0.00022739,2]
[362255663,1748121056770,-430.0,0.00022739,2]
[362255664,1748121056780,-430.0,0.00022739,2]
[362255665,1748121056789,-430.0,0.00022739,2]
[362255666,1748121056799,-477.34028706,0.00022739,2]
[362255667,1748121056808,-430.0,0.00022739,2]
[362255668,1748121056818,-430.0,0.00022739,2]
[362255669,1748121056827,-430.0,0.00022739,2]
[362255670,1748121056836,-430.0,0.00022739,2]
[362255671,1748121056846,-570.0,0.00022739,2]
[362255672,1748121056855,-698.16,0.00022739,2]
[362255673,1748121056865,-570.0,0.00022739,2]
[362255674,1748121056875,-529.49,0.00022739,2]
[362255675,1748121056885,-430.0,0.00022739,2]
[362255676,1748121056894,-593.18,0.00022739,2]
[362255677,1748121056904,-430.0,0.00022739,2]
[362255678,1748121056914,-430.0,0.00022739,2]
[362255679,1748121056923,-279.00595362,0.00022739,2]
[362255680,1748121056933,-1019.63,0.00022739,2]
[362255681,1748121056942,-911.42,0.00022739,2]
[362255682,1748121056952,-430.0,0.00022739,2]
[362255683,1748121056962,-430.0,0.00022739,2]
[362255684,1748121056971,-430.0,0.00022739,2]
[362255685,1748121056982,-530.0,0.00022739,2]
[362255686,1748121056991,-2025.65825469,0.00022851,2]
[362255687,1748121057001,-151.0,0.00022964,7]
[362255688,1748121057011,-157.466509,0.00022964,7]
[362255689,1748121057022,-327.42099146,0.00023,2]
[362255690,1748121057032,-960.0,0.00023007,2]
[362255691,1748121057041,-707.0,0.00023007,2]
[362255692,1748121057051,-2234.0,0.00023007,2]
[362255693,1748121057061,-404.0,0.00023007,2]
[362255694,1748121057070,-570.0,0.00023013,2]
[362255695,1748121057080,-304.64726009,0.00023013,2]
[362255696,1748121057090,-151.0,0.00023013,7]
[362255697,1748121057099,-430.0,0.00023013,2]
[362255698,1748121057109,-530.0,0.00023013,2]
[362255699,1748121057119,-430.0,0.00023013,2]
[362255700,1748121057128,-530.0,0.00023013,2]
[362255701,1748121057137,-242.49134895,0.00023013,2]
[362255702,1748121057146,-430.0,0.00023013,2]
[362255703,1748121057157,-430.0,0.00023013,2]
[362255704,1748121057168,-430.0,0.00023013,2]
[362255705,1748121057177,-570.0,0.00023013,2]
[362255706,1748121057187,-574.16,0.00023013,2]
[362255707,1748121057195,-430.0,0.00023013,2]
[362255708,1748121057205,-430.0,0.00023013,2]
[362255709,1748121057215,-430.0,0.00023013,2]
[362255710,1748121057224,-430.0,0.00023013,2]
[362255711,1748121057234,-530.0,0.00023013,2]
[362255712,1748121057247,-430.0,0.00023013,2]
[362255713,1748121057256,-151.0,0.00023013,7]
[362255714,1748121057265,-430.0,0.00023013,2]
[362255715,1748121057275,-430.0,0.00023013,2]
[362255716,1748121057284,-430.0,0.00023013,2]
[362255717,1748121057295,-570.0,0.00023013,2]
[362255718,1748121057304,-430.0,0.00023013,2]
[362255719,1748121057314,-430.0,0.00023013,2]
[362255720,1748121057323,-474.79,0.00023013,2]
[362255721,1748121057333,-430.0,0.00023013,2]
[362255722,1748121057343,-430.0,0.00023013,2]
[362255723,1748121057353,-430.0,0.00023013,2]
[362255724,1748121057363,-510.0,0.00023013,2]
[362255725,1748121057373,-430.0,0.00023013,2]
[362255726,1748121057383,-430.0,0.00023013,2]
[362255727,1748121057393,-510.0,0.00023013,2]
[362255728,1748121057402,-270.64,0.00023013,2]
[362255729,1748121057412,-430.0,0.00023013,2]
[362255730,1748121057421,-181.14961634,0.00023013,2]
[362255731,1748121057431,-510.0,0.00023013,2]
[362255732,1748121057440,-510.0,0.00023013,2]
[362255733,1748121057451,-510.0,0.00023013,2]
[362255734,1748121057460,-530.0,0.00023013,2]
[362255735,1748121057470,-510.0,0.00023013,2]
[362255736,1748121057480,-510.0,0.00023013,2]
[362255737,1748121057490,-430.0,0.00023013,2]
[362255738,1748121057501,-430.0,0.00023013,2]
[362255739,1748121057510,-530.0,0.00023013,2]
[362255740,1748121057522,-202.66,0.00023013,2]
[362255741,1748121057531,-430.0,0.00023013,2]
[362255742,1748121057541,-430.0,0.00023013,2]
[362255743,1748121057550,-234.08695977,0.00023013,2]
[362255744,1748121057560,-430.0,0.00023013,2]
[362255745,1748121057569,-449.28324985,0.00023013,2]
[362255746,1748121057580,-430.0,0.00023013,2]
[362255747,1748121057591,-513.97,0.00023013,2]
[362255748,1748121057602,-430.0,0.00023013,2]
[362255749,1748121057617,-490.0,0.00023013,2]
[362255750,1748121057630,-430.0,0.00023013,2]
[362255751,1748121057641,-777.32,0.00023013,2]
[362255752,1748121057650,-430.0,0.00023013,2]
[362255753,1748121057660,-167.38472747,0.00023013,2]
[362255754,1748121057670,-2531.05,0.00023013,2]
[362255755,1748121057679,-430.0,0.00023013,2]
[362255756,1748121057689,-434.48,0.00023013,2]
[362255757,1748121057698,-1086.65,0.00023013,2]
[362255758,1748121057707,-490.0,0.00023013,2]
[362255759,1748121057717,-476.44,0.00023013,2]
[362255760,1748121057726,-430.0,0.00023013,2]
[362255761,1748121057735,-430.0,0.00023013,2]
[362255762,1748121057745,-430.0,0.00023013,2]
[362255763,1748121057755,-430.0,0.00023013,2]
[362255764,1748121057765,-430.0,0.00023013,2]
[362255765,1748121057774,-1117.42,0.00023013,2]
[362255766,1748121057784,-464.83,0.00023013,2]
[362255767,1748121057793,-430.0,0.00023013,2]
[362255768,1748121057802,-430.0,0.00023013,2]
[362255769,1748121057812,-430.0,0.00023013,2]
[362255770,1748121057822,-430.0,0.00023013,2]
[362255771,1748121057831,-430.0,0.00023013,2]
[362255772,1748121057841,-430.0,0.00023013,2]
[362255773,1748121057850,-1834.6,0.00023013,2]
[362255774,1748121057859,-175.16457696,0.00023013,2]
[362255775,1748121057869,-430.0,0.00023013,2]
[362255776,1748121057879,-430.0,0.00023013,2]
[362255777,1748121057888,-492.78,0.00023013,2]
[362255778,1748121057899,-430.0,0.00023013,2]
[362255779,1748121057908,-837.43,0.00023013,2]
[362255780,1748121057919,-500.29,0.00023013,2]
[362255781,1748121057928,-430.0,0.00023013,2]
[362255782,1748121057938,-649.52,0.00023013,2]
[362255783,1748121057947,-430.0,0.00023013,2]
[362255784,1748121057956,-430.0,0.00023013,2]
[362255785,1748121057966,-229.61287573,0.00023013,2]
[362255786,1748121057976,-430.0,0.00023013,2]
[362255787,1748121057986,-430.0,0.00023013,2]
[362255788,1748121057996,-430.0,0.00023013,2]
[362255789,1748121058005,-430.0,0.00023013,2]
[362255790,1748121058015,-579.6,0.00023013,2]
[362255791,1748121058024,-367.03633844,0.00023013,2]
[362255792,1748121058034,-936.26,0.00023013,2]
[362255793,1748121058044,-430.0,0.00023013,2]
[362255794,1748121058053,-430.0,0.00023013,2]
[362255795,1748121058063,-2085.22,0.00023013,2]
[362255796,1748121058072,-430.0,0.00023013,2]
[362255797,1748121058086,-490.0,0.00023013,2]
[362255798,1748121058097,-515.38,0.00023013,2]
[362255799,1748121058106,-430.0,0.00023013,2]
[362255800,1748121058116,-824.47,0.00023013,2]
[362255801,1748121058127,-430.0,0.00023013,2]
[362255802,1748121058136,-430.0,0.00023013,2]
[362255803,1748121058146,-430.0,0.00023013,2]
[362255804,1748121058156,-438.64,0.00023013,2]
[362255805,1748121058167,-430.0,0.00023013,2]
[362255806,1748121058176,-430.0,0.00023013,2]
[362255807,1748121058185,-430.0,0.00023013,2]
[362255808,1748121058195,-2791.15,0.00023013,2]
[362255809,1748121058205,-466.69407913,0.00023013,2]
[362255810,1748121058215,-570.0,0.00023013,2]
[362255811,1748121058225,-430.0,0.00023013,2]
[362255812,1748121058235,-999.25,0.00023013,2]
[362255813,1748121058244,-430.0,0.00023013,2]
[362255814,1748121058254,-1101.64,0.00023013,2]
[362255815,1748121058264,-430.0,0.00023013,2]
[362255816,1748121058274,-430.0,0.00023013,2]
[362255817,1748121058284,-5231.77,0.00023013,2]
[362255818,1748121058295,-430.0,0.00023013,2]
[362255819,1748121058305,-430.0,0.00023013,2]
[362255820,1748121058314,-291.81253736,0.00023013,2]
[362255821,1748121058324,-532.12,0.00023013,2]
[362255822,1748121058334,-430.0,0.00023013,2]
[362255823,1748121058343,-430.0,0.00023013,2]
[362255824,1748121058353,-430.0,0.00023013,2]
[362255825,1748121058363,-698.16,0.00023013,2]
[362255826,1748121058373,-529.49,0.00023013,2]
[362255827,1748121058382,-430.0,0.00023013,2]
[362255828,1748121058392,-593.18,0.00023013,2]
[362255829,1748121058402,-430.0,0.00023013,2]
[362255830,1748121058412,-490.0,0.00023013,2]
[362255831,1748121058422,-1019.63,0.00023013,2]
[362255832,1748121058432,-911.42,0.00023013,2]
[362255833,1748121058442,-430.0,0.00023013,2]
[362255834,1748121058452,-430.0,0.00023013,2]
[362255835,1748121058462,-470.0,0.00023013,2]
[362255836,1748121058472,-501.52744538,0.00023021,2]
[362255837,1748121058482,-500.0,0.00023021,2]
[362255838,1748121058492,-1000.0,0.00023021,2]
[362255839,1748121058501,-900.0,0.0002316,2]
[362255840,1748121058511,-500.0,0.000232,2]
[362255841,1748121058520,-259.60971459,0.000232,2]
[362255842,1748121058530,-500.0,0.000232,2]
[362255843,1748121058540,-500.0,0.00023206,2]
[362255844,1748121058549,-500.0,0.00023206,2]
[362255845,1748121058559,-500.0,0.00023206,2]
[362255846,1748121058568,-500.0,0.00023206,2]
[362255847,1748121058578,-500.0,0.00023206,2]
[362255848,1748121058587,-500.0,0.00023206,2]
[362255849,1748121058596,-500.0,0.00023206,2]
[362255850,1748121058606,-500.0,0.00023206,2]
[362255851,1748121058615,-500.0,0.00023206,2]
[362255852,1748121058624,-511.13633634,0.00023206,2]
[362255853,1748121058633,-500.0,0.00023206,2]
[362255854,1748121058642,-500.0,0.00023206,2]
[362255855,1748121058651,-500.0,0.00023206,2]
[362255856,1748121058660,-500.0,0.00023206,2]
[362255857,1748121058670,-600.0,0.00023206,2]
[362255858,1748121058771,-500.0,0.00023206,2]
[362255859,1748121058781,-500.0,0.00023206,2]
[362255860,1748121058791,-500.0,0.00023206,2]
[362255861,1748121058800,-500.0,0.00023206,2]
[362255862,1748121058810,-500.0,0.00023206,2]
[362255863,1748121058819,-197.49466,0.00023287,7]
[362255864,1748121058828,-151.0,0.00023287,7]
[362255865,1748121058837,-473.3358381,0.00023287,2]
[362255866,1748121058846,-430.0,0.00023287,2]
[362255867,1748121058856,-180.0,0.00023287,2]
[362255868,1748121058865,-430.0,0.00023287,2]
[362255869,1748121058874,-430.0,0.00023287,2]
[362255870,1748121058884,-570.0,0.00023287,2]
[362255871,1748121058893,-430.0,0.00023287,2]
[362255872,1748121058902,-430.0,0.00023287,2]
[362255873,1748121058911,-430.0,0.00023287,2]
[362255874,1748121058920,-430.0,0.00023287,2]
[362255875,1748121058929,-430.0,0.00023287,2]
[362255876,1748121058938,-430.0,0.00023287,2]
[362255877,1748121058948,-550.0,0.00023287,2]
[362255878,1748121058957,-430.0,0.00023287,2]
[362255879,1748121058966,-550.0,0.00023287,2]
[362255880,1748121058975,-430.0,0.00023287,2]
[362255881,1748121058984,-442.67,0.00023287,2]
[362255882,1748121058994,-430.0,0.00023287,2]
[362255883,1748121059003,-421.2228634,0.00023287,2]
[362255884,1748121059012,-440.92,0.00023287,2]
[362255885,1748121059021,-430.0,0.00023287,2]
[362255886,1748121059031,-570.0,0.00023287,2]
[362255887,1748121059040,-510.0,0.00023287,2]
[362255888,1748121059048,-490.0,0.00023287,2]
[362255889,1748121059058,-430.0,0.00023287,2]
[362255890,1748121059067,-430.0,0.00023287,2]
[362255891,1748121059077,-513.97,0.00023287,2]
[362255892,1748121059088,-430.0,0.00023287,2]
[362255893,1748121059097,-430.0,0.00023287,2]
[362255894,1748121059106,-430.0,0.00023287,2]
[362255895,1748121059116,-2531.05,0.00023287,2]
[362255896,1748121059126,-430.0,0.00023287,2]
[362255897,1748121059135,-434.48,0.00023287,2]
[362255898,1748121059145,-1086.65,0.00023287,2]
[362255899,1748121059157,-476.44,0.00023287,2]
[362255900,1748121059166,-430.0,0.00023287,2]
[362255901,1748121059175,-430.0,0.00023287,2]
[362255902,1748121059185,-430.0,0.00023287,2]
[362255903,1748121059194,-508.92,0.00023287,2]
[362255904,1748121059203,-530.0,0.00023287,2]
[362255905,1748121059213,-1117.42,0.00023287,2]
[362255906,1748121059222,-464.83,0.00023287,2]
[362255907,1748121059231,-151.47067334,0.00023287,2]
[362255908,1748121059240,-550.0,0.00023287,2]
[362255909,1748121059249,-430.0,0.00023287,2]
[362255910,1748121059258,-430.0,0.00023287,2]
[362255911,1748121059267,-430.0,0.00023287,2]
[362255912,1748121059277,-1834.6,0.00023287,2]
[362255913,1748121059286,-430.0,0.00023287,2]
[362255914,1748121059296,-490.0,0.00023287,2]
[362255915,1748121059305,-492.78,0.00023287,2]
[362255916,1748121059314,-430.0,0.00023287,2]
[362255917,1748121059324,-837.43,0.00023287,2]
[362255918,1748121059334,-500.29,0.00023287,2]
[362255919,1748121059343,-430.0,0.00023287,2]
[362255920,1748121059353,-649.52,0.00023287,2]
[362255921,1748121059362,-510.0,0.00023287,2]
[362255922,1748121059372,-430.0,0.00023287,2]
[362255923,1748121059381,-430.0,0.00023287,2]
[362255924,1748121059391,-430.0,0.00023287,2]
[362255925,1748121059400,-485.44,0.00023287,2]
[362255926,1748121059410,-550.0,0.00023287,2]
[362255927,1748121059421,-936.26,0.00023287,2]
[362255928,1748121059430,-430.0,0.00023287,2]
[362255929,1748121059440,-570.0,0.00023287,2]
[362255930,1748121059449,-2085.22,0.00023287,2]
[362255931,1748121059459,-430.0,0.00023287,2]
[362255932,1748121059468,-515.38,0.00023287,2]
[362255933,1748121059478,-530.0,0.00023287,2]
[362255934,1748121059488,-824.47,0.00023287,2]
[362255935,1748121059497,-301.28015164,0.00023287,2]
[362255936,1748121059507,-546.9,0.00023287,2]
[362255937,1748121059516,-520.0,0.00023287,2]
[362255938,1748121059526,-438.64,0.00023287,2]
[362255939,1748121059535,-430.0,0.00023287,2]
[362255940,1748121059544,-430.0,0.00023287,2]
[362255941,1748121059554,-490.0,0.00023287,2]
[362255942,1748121059564,-2791.15,0.00023287,2]
[362255943,1748121059573,-490.0,0.00023287,2]
[362255944,1748121059583,-999.25,0.00023287,2]
[362255945,1748121059593,-430.0,0.00023287,2]
[362255946,1748121059602,-1101.64,0.00023287,2]
[362255947,1748121059612,-430.0,0.00023287,2]
[362255948,1748121059622,-430.0,0.00023287,2]
[362255949,1748121059631,-5231.77,0.00023287,2]
[362255950,1748121059640,-430.0,0.00023287,2]
[362255951,1748121059651,-430.0,0.00023287,2]
[362255952,1748121059661,-430.0,0.00023287,2]
[362255953,1748121059670,-430.0,0.00023287,2]
[362255954,1748121059680,-364.49,0.00023287,2]
[362255955,1748121059689,-698.16,0.00023287,2]
[362255956,1748121059699,-529.49,0.00023287,2]
[362255957,1748121059709,-430.0,0.00023287,2]
[362255958,1748121059719,-593.18,0.00023287,2]
[362255959,1748121059728,-430.0,0.00023287,2]
[362255960,1748121059738,-1019.63,0.00023287,2]
[362255961,1748121059747,-911.42,0.00023287,2]
[362255962,1748121059756,-430.0,0.00023287,2]
[362255963,1748121059766,-430.0,0.00023287,2]
[362255964,1748121059775,-695.86241916,0.00023359,2]
[362255965,1748121059784,-247.666165,0.00023447,2]
[362255966,1748121059793,-565.52293309,0.00023506,2]
[362255967,1748121059803,-172.73679644,0.00023507,2]
[362255968,1748121059812,-500.0,0.00023517,2]
[362255969,1748121059823,-500.0,0.00023517,2]
[362255970,1748121059832,-500.0,0.00023517,2]
[362255971,1748121059841,-500.0,0.00023517,2]
[362255972,1748121059850,-151.0,0.00023561,7]
[362255973,1748121059859,-430.0,0.00023561,2]
[362255974,1748121059869,-430.0,0.00023561,2]
[362255975,1748121059878,-160.0,0.00023561,2]
[362255976,1748121059887,-430.0,0.00023561,2]
[362255977,1748121059896,-165.07,0.00023561,2]
[362255978,1748121059906,-430.0,0.00023561,2]
[362255979,1748121059915,-240.02,0.00023561,2]
[362255980,1748121059925,-430.0,0.00023561,2]
[362255981,1748121059934,-430.0,0.00023561,2]
[362255982,1748121059943,-430.0,0.00023561,2]